[Event "*** Titled Tuesday Blitz"]
[Site "Chess.com"]
[Date "2020.12.29"]
[Round "2"]
[White "joppie2"]
[Black "sokidze"]
[Result "1-0"]
[WhiteElo "2882"]
[BlackElo "2556"]
[TimeControl "180+1"]
[EndTime "10:19:00 PST"]
[Termination "joppie2 won on time"]

1. c4 {[%clk 0:03:00.9]} 1... c5 {[%clk 0:02:59.8]} 2. Nf3 {[%clk 0:03:00.1]}
2... Nc6 {[%clk 0:02:59.3]} 3. Nc3 {[%clk 0:03:00.7]} 3... e5 {[%clk 0:02:59.6]}
4. g3 {[%clk 0:02:58]} 4... g6 {[%clk 0:02:59.8]} 5. Bg2 {[%clk 0:02:57.7]} 5...
Bg7 {[%clk 0:03:00.2]} 6. O-O {[%clk 0:02:58.1]} 6... Nge7 {[%clk 0:03:00.8]} 7.
d3 {[%clk 0:02:57.7]} 7... O-O {[%clk 0:03:01.4]} 8. a3 {[%clk 0:02:58.1]} 8...
d6 {[%clk 0:02:52.3]} 9. b4 {[%clk 0:02:57.8]} 9... e4 {[%clk 0:02:47.8]} 10.
Nxe4 {[%clk 0:02:46.2]} 10... Bxa1 {[%clk 0:02:45.7]} 11. Bf4 {[%clk 0:02:47.1]}
11... Bg7 {[%clk 0:02:33.6]} 12. Bxd6 {[%clk 0:02:47.1]} 12... cxb4 {[%clk
0:02:26.8]} 13. Bxb4 {[%clk 0:02:45.5]} 13... Nxb4 {[%clk 0:02:24.9]} 14. axb4
{[%clk 0:02:46.4]} 14... Nc6 {[%clk 0:02:23.8]} 15. b5 {[%clk 0:02:44.9]} 15...
Nd4 {[%clk 0:02:23.9]} 16. Nfd2 {[%clk 0:02:43.8]} 16... Qc7 {[%clk 0:02:12.6]}
17. e3 {[%clk 0:02:41.7]} 17... Ne6 {[%clk 0:02:12]} 18. d4 {[%clk 0:02:37]}
18... Bd7 {[%clk 0:02:00.3]} 19. Nc3 {[%clk 0:02:36]} 19... a6 {[%clk
0:01:45.8]} 20. Nd5 {[%clk 0:02:34.3]} 20... Qd8 {[%clk 0:01:45.2]} 21. bxa6
{[%clk 0:02:25.3]} 21... Rxa6 {[%clk 0:01:46.1]} 22. Qb3 {[%clk 0:02:24]} 22...
Bc6 {[%clk 0:01:42.1]} 23. Ne4 {[%clk 0:02:15.3]} 23... Ra8 {[%clk 0:01:35.8]}
24. Nec3 {[%clk 0:02:12.1]} 24... Ra7 {[%clk 0:01:23.1]} 25. Nb5 {[%clk
0:02:09.8]} 25... Bxb5 {[%clk 0:01:23.4]} 26. cxb5 {[%clk 0:02:03.6]} 26... Qa5
{[%clk 0:01:13.7]} 27. h4 {[%clk 0:02:02.3]} 27... Qa4 {[%clk 0:01:08.8]} 28.
Qd3 {[%clk 0:02:00]} 28... Qa3 {[%clk 0:01:05.8]} 29. Qc4 {[%clk 0:01:55.9]}
29... Qd6 {[%clk 0:01:05.3]} 30. Bf3 {[%clk 0:01:51.6]} 30... Raa8 {[%clk
0:01:04.5]} 31. Rc1 {[%clk 0:01:49.4]} 31... h5 {[%clk 0:00:59.3]} 32. Kg2
{[%clk 0:01:44.7]} 32... Kh8 {[%clk 0:00:57.2]} 33. Rc2 {[%clk 0:01:41.2]} 33...
Rab8 {[%clk 0:00:45.7]} 34. Rc1 {[%clk 0:01:38.8]} 34... Qd7 {[%clk 0:00:45.5]}
35. Qd3 {[%clk 0:01:34.9]} 35... Kh7 {[%clk 0:00:37.5]} 36. Rc2 {[%clk 0:01:28]}
36... Rfe8 {[%clk 0:00:37.2]} 37. Nb6 {[%clk 0:01:27.1]} 37... Qd6 {[%clk
0:00:36.3]} 38. Nc4 {[%clk 0:01:27.2]} 38... Qe7 {[%clk 0:00:32.2]} 39. Bxh5
{[%clk 0:01:25.5]} 39... Rbc8 {[%clk 0:00:31.8]} 40. Bg4 {[%clk 0:01:22.3]}
40... Rcd8 {[%clk 0:00:27.5]} 41. h5 {[%clk 0:01:11.2]} 41... Qg5 {[%clk
0:00:26.8]} 42. hxg6+ {[%clk 0:01:10.1]} 42... fxg6 {[%clk 0:00:25.3]} 43. Bf3
{[%clk 0:00:57.2]} 43... Nc5 {[%clk 0:00:22.3]} 44. Qf1 {[%clk 0:00:55.7]} 44...
Ne4 {[%clk 0:00:19.8]} 45. Na5 {[%clk 0:00:46.1]} 45... Re7 {[%clk 0:00:14.3]}
46. Nc4 {[%clk 0:00:31.7]} 46... Rf8 {[%clk 0:00:13.6]} 47. Qd3 {[%clk
0:00:30.7]} 47... Nf6 {[%clk 0:00:09.5]} 48. Ne5 {[%clk 0:00:29.6]} 48... Nd7
{[%clk 0:00:06.8]} 49. Ng4 {[%clk 0:00:26.7]} 49... Ref7 {[%clk 0:00:06.3]} 50.
Nh2 {[%clk 0:00:22.8]} 50... Nf6 {[%clk 0:00:05.7]} 51. b6 {[%clk 0:00:21.5]}
51... Nd5 {[%clk 0:00:05.8]} 52. Rc5 {[%clk 0:00:21.5]} 52... Rd7 {[%clk
0:00:04.1]} 53. Be4 {[%clk 0:00:21.2]} 53... Rdf7 {[%clk 0:00:02.9]} 54. Nf3
{[%clk 0:00:20.6]} 54... Qe7 {[%clk 0:00:02]} 55. Rxd5 {[%clk 0:00:20.3]} 55...
Qe6 {[%clk 0:00:02.3]} 56. Ng5+ {[%clk 0:00:19.9]} 1-0

[Event "*** Titled Tuesday Blitz"]
[Site "Chess.com"]
[Date "2020.12.29"]
[Round "2"]
[White "petrpalachev"]
[Black "ural58"]
[Result "1-0"]
[WhiteElo "2700"]
[BlackElo "2394"]
[TimeControl "180+1"]
[EndTime "10:19:06 PST"]
[Termination "petrpalachev won by resignation"]

1. d4 {[%clk 0:02:57.4]} 1... d5 {[%clk 0:02:50]} 2. Nf3 {[%clk 0:02:57.3]} 2...
Nc6 {[%clk 0:02:49.5]} 3. h3 {[%clk 0:02:54.1]} 3... Bf5 {[%clk 0:02:45.2]} 4.
c3 {[%clk 0:02:54.2]} 4... e6 {[%clk 0:02:44.8]} 5. Bf4 {[%clk 0:02:51]} 5...
Bd6 {[%clk 0:02:44.6]} 6. e3 {[%clk 0:02:47.1]} 6... Nge7 {[%clk 0:02:42.6]} 7.
Bd3 {[%clk 0:02:47]} 7... O-O {[%clk 0:02:41.2]} 8. O-O {[%clk 0:02:46.6]} 8...
a6 {[%clk 0:02:39.1]} 9. a4 {[%clk 0:02:44.5]} 9... Rc8 {[%clk 0:02:38]} 10. Na3
{[%clk 0:02:44.8]} 10... Bxd3 {[%clk 0:02:37.2]} 11. Qxd3 {[%clk 0:02:44.5]}
11... Ng6 {[%clk 0:02:37.6]} 12. Bxd6 {[%clk 0:02:41.5]} 12... cxd6 {[%clk
0:02:37.7]} 13. e4 {[%clk 0:02:41.3]} 13... dxe4 {[%clk 0:02:37]} 14. Qxe4
{[%clk 0:02:42.2]} 14... Na5 {[%clk 0:02:25.6]} 15. g3 {[%clk 0:02:32.5]} 15...
Qd7 {[%clk 0:02:10.9]} 16. Nc2 {[%clk 0:02:26.4]} 16... Nc4 {[%clk 0:02:08.2]}
17. Ra2 {[%clk 0:02:22.2]} 17... e5 {[%clk 0:02:01.4]} 18. dxe5 {[%clk
0:02:17.4]} 18... dxe5 {[%clk 0:02:01.5]} 19. h4 {[%clk 0:02:14.5]} 19... f5
{[%clk 0:02:00.7]} 20. Qe2 {[%clk 0:02:13.3]} 20... e4 {[%clk 0:02:00.5]} 21.
Nfd4 {[%clk 0:02:09.9]} 21... Nge5 {[%clk 0:01:59.3]} 22. Ne3 {[%clk 0:02:05.3]}
22... Nxe3 {[%clk 0:01:48.7]} 23. Qxe3 {[%clk 0:02:06.2]} 23... Qf7 {[%clk
0:01:43.8]} 24. Raa1 {[%clk 0:02:03.7]} 24... h6 {[%clk 0:01:39]} 25. Rad1
{[%clk 0:01:56.4]} 25... Qg6 {[%clk 0:01:27.3]} 26. Rfe1 {[%clk 0:01:44.3]}
26... Rcd8 {[%clk 0:01:20.6]} 27. Kg2 {[%clk 0:01:30.5]} 27... Kh7 {[%clk
0:01:16.2]} 28. f3 {[%clk 0:01:17.1]} 28... f4 {[%clk 0:01:08.1]} 29. Qxe4
{[%clk 0:01:12.3]} 29... Qxe4 {[%clk 0:00:59.6]} 30. Rxe4 {[%clk 0:01:11.7]}
30... Nc4 {[%clk 0:01:00.5]} 31. Rde1 {[%clk 0:00:50.3]} 31... Nxb2 {[%clk
0:00:57.5]} 32. Ne6 {[%clk 0:00:49.8]} 32... Rd2+ {[%clk 0:00:56.6]} 33. R1e2
{[%clk 0:00:50]} 33... Rxe2+ {[%clk 0:00:42.5]} 34. Rxe2 {[%clk 0:00:50.9]}
34... Re8 {[%clk 0:00:42.3]} 35. Ng5+ {[%clk 0:00:50.8]} 35... hxg5 {[%clk
0:00:42.4]} 36. Rxe8 {[%clk 0:00:51.7]} 36... Nxa4 {[%clk 0:00:41.6]} 37. hxg5
{[%clk 0:00:44.2]} 37... fxg3 {[%clk 0:00:41.6]} 38. Rb8 {[%clk 0:00:38.6]}
38... b5 {[%clk 0:00:38.4]} 39. Ra8 {[%clk 0:00:38.8]} 39... Kg6 {[%clk
0:00:34.5]} 40. Rxa6+ {[%clk 0:00:37]} 40... Kxg5 {[%clk 0:00:34.7]} 41. Rc6
{[%clk 0:00:31.8]} 41... Kf4 {[%clk 0:00:27.3]} 42. c4 {[%clk 0:00:20.1]} 42...
b4 {[%clk 0:00:27]} 43. Ra6 {[%clk 0:00:18.6]} 43... Nc5 {[%clk 0:00:20.5]} 44.
Rb6 {[%clk 0:00:18.3]} 44... Nd3 {[%clk 0:00:20.8]} 45. c5 {[%clk 0:00:16.9]}
45... Ne1+ {[%clk 0:00:20.9]} 46. Kf1 {[%clk 0:00:14.3]} 46... g2+ {[%clk
0:00:20.6]} 47. Kf2 {[%clk 0:00:11.9]} 47... g1=Q+ {[%clk 0:00:18.2]} 48. Kxg1
{[%clk 0:00:11.6]} 48... Nxf3+ {[%clk 0:00:18.7]} 49. Kf2 {[%clk 0:00:11.6]}
49... Ne5 {[%clk 0:00:18.2]} 50. c6 {[%clk 0:00:08.4]} 50... Nd3+ {[%clk
0:00:06.3]} 51. Ke2 {[%clk 0:00:06.4]} 51... Ke4 {[%clk 0:00:04.6]} 52. c7
{[%clk 0:00:05.4]} 52... Nf4+ {[%clk 0:00:04.8]} 53. Kd2 {[%clk 0:00:05.2]}
53... Nd5 {[%clk 0:00:04.9]} 54. Re6+ {[%clk 0:00:04.3]} 54... Kf5 {[%clk
0:00:04.9]} 55. c8=Q {[%clk 0:00:05.2]} 1-0

[Event "*** Titled Tuesday Blitz"]
[Site "Chess.com"]
[Date "2020.12.29"]
[Round "2"]
[White "Koksal06"]
[Black "Roza_Idrisova"]
[Result "1-0"]
[WhiteElo "2412"]
[BlackElo "2168"]
[TimeControl "180+1"]
[EndTime "10:19:06 PST"]
[Termination "Koksal06 won on time"]

1. d4 {[%clk 0:03:00.9]} 1... d5 {[%clk 0:02:59.6]} 2. c4 {[%clk 0:03:01.4]}
2... c6 {[%clk 0:02:53.3]} 3. Nc3 {[%clk 0:03:01.7]} 3... Nf6 {[%clk 0:02:52.2]}
4. Nf3 {[%clk 0:03:02.2]} 4... a6 {[%clk 0:02:51.7]} 5. a4 {[%clk 0:03:01.3]}
5... e6 {[%clk 0:02:49.3]} 6. Bg5 {[%clk 0:03:00.3]} 6... Be7 {[%clk 0:02:48.7]}
7. e3 {[%clk 0:03:00.4]} 7... a5 {[%clk 0:02:48.9]} 8. Bd3 {[%clk 0:02:58.4]}
8... Na6 {[%clk 0:02:49]} 9. O-O {[%clk 0:02:57.6]} 9... Nb4 {[%clk 0:02:49]}
10. Qe2 {[%clk 0:02:55]} 10... b6 {[%clk 0:02:48.9]} 11. e4 {[%clk 0:02:54.7]}
11... Ba6 {[%clk 0:02:48.2]} 12. b3 {[%clk 0:02:24.3]} 12... O-O {[%clk
0:02:30.7]} 13. Rac1 {[%clk 0:01:45.4]} 13... c5 {[%clk 0:02:05.9]} 14. dxc5
{[%clk 0:01:43.8]} 14... dxe4 {[%clk 0:01:50.5]} 15. Bxe4 {[%clk 0:01:34.9]}
15... Nxe4 {[%clk 0:01:45.8]} 16. Nxe4 {[%clk 0:01:35.2]} 16... Bxg5 {[%clk
0:01:43.7]} 17. Nfxg5 {[%clk 0:01:08.1]} 17... Qd3 {[%clk 0:01:31.5]} 18. Qxd3
{[%clk 0:01:02.9]} 18... Nxd3 {[%clk 0:01:30.7]} 19. Rcd1 {[%clk 0:01:03.6]}
19... Nxc5 {[%clk 0:01:28.9]} 20. Nxc5 {[%clk 0:01:03.7]} 20... bxc5 {[%clk
0:01:28.9]} 21. Ne4 {[%clk 0:01:02.7]} 21... Rfc8 {[%clk 0:01:26.6]} 22. Rd6
{[%clk 0:00:59.2]} 22... Bb7 {[%clk 0:01:23.9]} 23. Nc3 {[%clk 0:00:59.4]} 23...
Rc7 {[%clk 0:01:19.9]} 24. Rfd1 {[%clk 0:00:59]} 24... Kf8 {[%clk 0:01:18.2]}
25. Nb5 {[%clk 0:00:58.8]} 25... Rcc8 {[%clk 0:01:14.5]} 26. Rb6 {[%clk
0:00:46.7]} 26... Bc6 {[%clk 0:01:09.1]} 27. Rd6 {[%clk 0:00:28.3]} 27... Be8
{[%clk 0:01:03.2]} 28. f3 {[%clk 0:00:24.1]} 28... Rd8 {[%clk 0:00:57.8]} 29.
Kf2 {[%clk 0:00:23.6]} 29... Rxd6 {[%clk 0:00:53.8]} 30. Nxd6 {[%clk 0:00:24.5]}
30... Ke7 {[%clk 0:00:45.2]} 31. Nxe8 {[%clk 0:00:24.8]} 31... Kxe8 {[%clk
0:00:42.9]} 32. Rb5 {[%clk 0:00:25.7]} 32... Kd7 {[%clk 0:00:40]} 33. Rxc5
{[%clk 0:00:25.8]} 33... Kd6 {[%clk 0:00:40.2]} 34. Rb5 {[%clk 0:00:25]} 34...
Kc6 {[%clk 0:00:40.1]} 35. Ke3 {[%clk 0:00:25.1]} 35... Ra7 {[%clk 0:00:39]} 36.
Kd4 {[%clk 0:00:24.1]} 36... f6 {[%clk 0:00:36.2]} 37. c5 {[%clk 0:00:24.5]}
37... Rd7+ {[%clk 0:00:34.2]} 38. Kc4 {[%clk 0:00:24.5]} 38... Rd2 {[%clk
0:00:33]} 39. Rxa5 {[%clk 0:00:24.6]} 39... Rc2+ {[%clk 0:00:29.9]} 40. Kb4
{[%clk 0:00:24.5]} 40... Rxg2 {[%clk 0:00:29]} 41. Ra6+ {[%clk 0:00:24.9]} 41...
Kb7 {[%clk 0:00:28.9]} 42. Rxe6 {[%clk 0:00:24.6]} 42... f5 {[%clk 0:00:21.1]}
43. a5 {[%clk 0:00:23.3]} 43... g5 {[%clk 0:00:16.2]} 44. Re7+ {[%clk
0:00:22.9]} 44... Kc6 {[%clk 0:00:15.1]} 45. Rxh7 {[%clk 0:00:23.3]} 45... Rf2
{[%clk 0:00:11]} 46. Rh6+ {[%clk 0:00:23.3]} 46... Kd5 {[%clk 0:00:10.2]} 47.
Rd6+ {[%clk 0:00:23]} 47... Ke5 {[%clk 0:00:10]} 48. a6 {[%clk 0:00:23.6]} 48...
Ra2 {[%clk 0:00:10]} 49. Kb5 {[%clk 0:00:22.3]} 49... Kf4 {[%clk 0:00:09.5]} 50.
Rd4+ {[%clk 0:00:20.2]} 50... Kxf3 {[%clk 0:00:09.1]} 51. Ra4 {[%clk 0:00:21.1]}
51... Re2 {[%clk 0:00:08.2]} 52. a7 {[%clk 0:00:20.9]} 52... Re8 {[%clk
0:00:07.7]} 53. a8=Q+ {[%clk 0:00:21.1]} 53... Rxa8 {[%clk 0:00:08.4]} 54. Rxa8
{[%clk 0:00:21.7]} 54... f4 {[%clk 0:00:07.9]} 55. Rg8 {[%clk 0:00:22.1]} 55...
Kg4 {[%clk 0:00:07.2]} 56. c6 {[%clk 0:00:20.5]} 56... f3 {[%clk 0:00:07.3]} 57.
c7 {[%clk 0:00:21.1]} 57... f2 {[%clk 0:00:04.1]} 58. c8=Q+ {[%clk 0:00:22]}
58... Kf3 {[%clk 0:00:01.8]} 59. Rf8+ {[%clk 0:00:21.7]} 59... Kg2 {[%clk
0:00:01.7]} 60. Qg4+ {[%clk 0:00:21.5]} 1-0

[Event "*** Titled Tuesday Blitz"]
[Site "Chess.com"]
[Date "2020.12.29"]
[Round "2"]
[White "VladaSviridova"]
[Black "BigAl"]
[Result "0-1"]
[WhiteElo "2257"]
[BlackElo "2456"]
[TimeControl "180+1"]
[EndTime "10:19:07 PST"]
[Termination "BigAl won by resignation"]

1. d4 {[%clk 0:03:00.9]} 1... Nf6 {[%clk 0:02:59]} 2. c4 {[%clk 0:03:00.1]} 2...
g6 {[%clk 0:02:59.1]} 3. Nc3 {[%clk 0:02:59.7]} 3... Bg7 {[%clk 0:03:00]} 4. e4
{[%clk 0:02:59.5]} 4... O-O {[%clk 0:03:00.9]} 5. Nf3 {[%clk 0:02:59.9]} 5... d6
{[%clk 0:03:01.6]} 6. Be2 {[%clk 0:03:00.2]} 6... Bg4 {[%clk 0:03:02.3]} 7. Be3
{[%clk 0:02:59.7]} 7... Nbd7 {[%clk 0:03:02.9]} 8. Rc1 {[%clk 0:02:58.6]} 8...
e5 {[%clk 0:03:02.8]} 9. d5 {[%clk 0:02:58.2]} 9... a5 {[%clk 0:03:03.5]} 10.
O-O {[%clk 0:02:56]} 10... b6 {[%clk 0:03:02.3]} 11. a3 {[%clk 0:02:33.6]} 11...
Nh5 {[%clk 0:02:59]} 12. Qd2 {[%clk 0:02:19.5]} 12... Nc5 {[%clk 0:02:54.1]} 13.
Rb1 {[%clk 0:01:58.2]} 13... Nb3 {[%clk 0:02:44.9]} 14. Qd1 {[%clk 0:01:52.4]}
14... Nc5 {[%clk 0:02:30.3]} 15. b4 {[%clk 0:01:48.3]} 15... Nd7 {[%clk
0:02:30.4]} 16. Nd2 {[%clk 0:01:30.8]} 16... Bxe2 {[%clk 0:02:29.1]} 17. Nxe2
{[%clk 0:01:30.3]} 17... Nf4 {[%clk 0:02:30]} 18. Nxf4 {[%clk 0:01:29.7]} 18...
exf4 {[%clk 0:02:30.3]} 19. Bxf4 {[%clk 0:01:29.8]} 19... axb4 {[%clk
0:02:30.6]} 20. axb4 {[%clk 0:01:29.1]} 20... Re8 {[%clk 0:02:30.5]} 21. Bg3
{[%clk 0:01:19.3]} 21... Ra2 {[%clk 0:02:26.6]} 22. Re1 {[%clk 0:01:11.6]} 22...
h5 {[%clk 0:02:21.9]} 23. h3 {[%clk 0:01:00.8]} 23... h4 {[%clk 0:02:22]} 24.
Bf4 {[%clk 0:01:00.4]} 24... Ne5 {[%clk 0:02:16]} 25. Qb3 {[%clk 0:00:50.5]}
25... Qa8 {[%clk 0:02:12.6]} 26. Nf3 {[%clk 0:00:38]} 26... Ra3 {[%clk
0:02:06.9]} 27. Qd1 {[%clk 0:00:34.1]} 27... Nd3 {[%clk 0:01:52.5]} 28. Bg5
{[%clk 0:00:27.5]} 28... Nxe1 {[%clk 0:01:52.6]} 29. Qxe1 {[%clk 0:00:24.6]}
29... f5 {[%clk 0:01:51]} 30. e5 {[%clk 0:00:22.5]} 30... dxe5 {[%clk
0:01:49.5]} 31. Nxh4 {[%clk 0:00:20.7]} 31... Kh7 {[%clk 0:01:40.3]} 32. Qe2
{[%clk 0:00:20.1]} 32... e4 {[%clk 0:01:33.7]} 33. Be3 {[%clk 0:00:15.9]} 33...
Ra2 {[%clk 0:01:30.9]} 34. Qd1 {[%clk 0:00:14.9]} 34... Bf6 {[%clk 0:01:25.5]}
35. g3 {[%clk 0:00:12.4]} 35... Ra1 {[%clk 0:01:16.3]} 36. Ng2 {[%clk
0:00:10.8]} 36... Rxb1 {[%clk 0:01:12.9]} 37. Qxb1 {[%clk 0:00:10.5]} 37... Qa1
{[%clk 0:01:13.8]} 38. Qxa1 {[%clk 0:00:10.7]} 38... Bxa1 {[%clk 0:01:14.7]} 39.
Nf4 {[%clk 0:00:10.5]} 39... Be5 {[%clk 0:01:15.2]} 40. Ne6 {[%clk 0:00:09.9]}
40... Ra8 {[%clk 0:01:15.1]} 41. Kg2 {[%clk 0:00:09.2]} 41... Ra1 {[%clk
0:01:02.6]} 42. h4 {[%clk 0:00:09.3]} 42... Rd1 {[%clk 0:01:01.7]} 43. Nd8
{[%clk 0:00:07.8]} 43... b5 {[%clk 0:00:57]} 44. cxb5 {[%clk 0:00:06.2]} 44...
Rxd5 {[%clk 0:00:55.8]} 45. Nc6 {[%clk 0:00:06.1]} 45... Rxb5 {[%clk 0:00:53.3]}
46. Nxe5 {[%clk 0:00:06.2]} 46... Rxe5 {[%clk 0:00:48.8]} 47. Bf4 {[%clk
0:00:06.4]} 47... Re7 {[%clk 0:00:49.1]} 48. b5 {[%clk 0:00:06.4]} 48... Kg7
{[%clk 0:00:48.3]} 49. Kf1 {[%clk 0:00:06.5]} 49... Kf7 {[%clk 0:00:47.5]} 50.
Ke2 {[%clk 0:00:06.7]} 50... Rd7 {[%clk 0:00:47.3]} 51. Ke3 {[%clk 0:00:05.9]}
51... Ke6 {[%clk 0:00:48.2]} 52. Ke2 {[%clk 0:00:04.3]} 52... Kd5 {[%clk
0:00:48.1]} 53. Be3 {[%clk 0:00:02.4]} 53... Kc4 {[%clk 0:00:48.5]} 54. b6
{[%clk 0:00:02.5]} 54... c5 {[%clk 0:00:47.2]} 55. Kf1 {[%clk 0:00:01]} 55...
Rb7 {[%clk 0:00:47.1]} 56. Kg2 {[%clk 0:00:01.2]} 56... Rxb6 {[%clk 0:00:47.5]}
57. g4 {[%clk 0:00:01.5]} 57... fxg4 {[%clk 0:00:45]} 58. Kg3 {[%clk 0:00:01.9]}
58... Rc6 {[%clk 0:00:44.6]} 59. Kxg4 {[%clk 0:00:02.4]} 59... Kd3 {[%clk
0:00:45.5]} 60. Kg5 {[%clk 0:00:02.1]} 60... c4 {[%clk 0:00:45.8]} 61. Kf4
{[%clk 0:00:02.1]} 61... c3 {[%clk 0:00:46.1]} 62. Ke5 {[%clk 0:00:02.7]} 62...
c2 {[%clk 0:00:46.4]} 63. Bc1 {[%clk 0:00:02.7]} 63... Rc8 {[%clk 0:00:43.5]}
64. Kd5 {[%clk 0:00:02.4]} 64... Rf8 {[%clk 0:00:42.6]} 65. Ke5 {[%clk
0:00:02.4]} 65... Rxf2 {[%clk 0:00:42.1]} 0-1

[Event "*** Titled Tuesday Blitz"]
[Site "Chess.com"]
[Date "2020.12.29"]
[Round "2"]
[White "Babujj"]
[Black "Sharpchess22"]
[Result "0-1"]
[WhiteElo "2529"]
[BlackElo "2812"]
[TimeControl "180+1"]
[EndTime "10:19:08 PST"]
[Termination "Sharpchess22 won by resignation"]

1. e4 {[%clk 0:03:00.9]} 1... e5 {[%clk 0:02:58.8]} 2. Nf3 {[%clk 0:02:59.6]}
2... Nc6 {[%clk 0:02:58.4]} 3. Bb5 {[%clk 0:02:59.5]} 3... a6 {[%clk 0:02:58.1]}
4. Ba4 {[%clk 0:02:59.7]} 4... Nf6 {[%clk 0:02:57.5]} 5. O-O {[%clk 0:02:59.5]}
5... Be7 {[%clk 0:02:57.1]} 6. Re1 {[%clk 0:02:59.8]} 6... b5 {[%clk 0:02:56.4]}
7. Bb3 {[%clk 0:03:00]} 7... d6 {[%clk 0:02:56.7]} 8. c3 {[%clk 0:03:00.2]} 8...
O-O {[%clk 0:02:55.9]} 9. h3 {[%clk 0:03:00.6]} 9... Bb7 {[%clk 0:02:54]} 10. d4
{[%clk 0:03:00.3]} 10... Nd7 {[%clk 0:02:52.6]} 11. Nbd2 {[%clk 0:02:58.8]}
11... Bf6 {[%clk 0:02:43.4]} 12. Nf1 {[%clk 0:02:57.8]} 12... Nb6 {[%clk
0:02:42.6]} 13. Ng3 {[%clk 0:02:56.2]} 13... g6 {[%clk 0:02:42.4]} 14. Nh2
{[%clk 0:02:53]} 14... exd4 {[%clk 0:02:40.8]} 15. Ng4 {[%clk 0:02:49.6]} 15...
dxc3 {[%clk 0:02:28.8]} 16. bxc3 {[%clk 0:02:48]} 16... Bxc3 {[%clk 0:02:24.1]}
17. Bh6 {[%clk 0:02:46.8]} 17... Bg7 {[%clk 0:02:21.5]} 18. Qd2 {[%clk
0:02:43.8]} 18... Bxa1 {[%clk 0:02:11.6]} 19. Rxa1 {[%clk 0:02:41.5]} 19... Ne5
{[%clk 0:02:05.5]} 20. Bg5 {[%clk 0:01:36.5]} 20... Nbc4 {[%clk 0:01:29.9]} 21.
Qf4 {[%clk 0:01:35.6]} 21... f6 {[%clk 0:01:26.5]} 22. Nxf6+ {[%clk 0:01:07.6]}
22... Kh8 {[%clk 0:01:10.6]} 23. Qh4 {[%clk 0:01:04.8]} 23... Qe7 {[%clk
0:01:08.6]} 24. Nd5 {[%clk 0:00:31.7]} 24... Qg7 {[%clk 0:00:56.7]} 25. Bh6
{[%clk 0:00:28.1]} 25... Qf7 {[%clk 0:00:55.6]} 26. Bxf8 {[%clk 0:00:27.9]}
26... Rxf8 {[%clk 0:00:48]} 27. Rf1 {[%clk 0:00:26.3]} 27... Bxd5 {[%clk
0:00:46.4]} 28. exd5 {[%clk 0:00:27.2]} 28... Qxd5 {[%clk 0:00:45.7]} 29. Bc2
{[%clk 0:00:25.7]} 29... Qf7 {[%clk 0:00:42]} 30. f4 {[%clk 0:00:23.9]} 30...
Nd7 {[%clk 0:00:33.6]} 31. f5 {[%clk 0:00:22.6]} 31... g5 {[%clk 0:00:33.4]} 32.
Qxg5 {[%clk 0:00:20.7]} 32... Nf6 {[%clk 0:00:33.6]} 33. Qh4 {[%clk 0:00:17.5]}
33... Ne3 {[%clk 0:00:32.1]} 34. Bb3 {[%clk 0:00:18]} 34... Qg7 {[%clk
0:00:30.3]} 35. Rf3 {[%clk 0:00:17.2]} 35... Nc4 {[%clk 0:00:28.5]} 36. Bxc4
{[%clk 0:00:14.8]} 36... bxc4 {[%clk 0:00:28.3]} 37. Qxc4 {[%clk 0:00:15.7]}
37... a5 {[%clk 0:00:24.3]} 38. Qb5 {[%clk 0:00:15.2]} 38... Nd7 {[%clk
0:00:22.6]} 39. Qxa5 {[%clk 0:00:15.2]} 39... Ne5 {[%clk 0:00:22.4]} 40. Rb3
{[%clk 0:00:13.8]} 40... Qf7 {[%clk 0:00:17]} 41. Rb7 {[%clk 0:00:12.4]} 41...
Qg7 {[%clk 0:00:16.7]} 42. Rb3 {[%clk 0:00:10]} 42... c5 {[%clk 0:00:15.9]} 43.
Qa6 {[%clk 0:00:08.4]} 43... c4 {[%clk 0:00:15.5]} 44. Re3 {[%clk 0:00:08.6]}
44... Qc7 {[%clk 0:00:13.2]} 45. Qa3 {[%clk 0:00:08.4]} 45... Qb6 {[%clk
0:00:13]} 46. Kh2 {[%clk 0:00:08]} 46... Rg8 {[%clk 0:00:10.7]} 47. Qc3 {[%clk
0:00:07.9]} 47... Qc6 {[%clk 0:00:10.1]} 48. Rxe5 {[%clk 0:00:07.9]} 48... dxe5
{[%clk 0:00:09.6]} 49. Qxe5+ {[%clk 0:00:08.8]} 49... Rg7 {[%clk 0:00:10]} 50.
Qb8+ {[%clk 0:00:09.2]} 50... Rg8 {[%clk 0:00:09.7]} 51. Qe5+ {[%clk 0:00:09.7]}
51... Rg7 {[%clk 0:00:10.1]} 52. Nh5 {[%clk 0:00:10.3]} 52... Qc7 {[%clk
0:00:09.4]} 53. Qxc7 {[%clk 0:00:08.3]} 53... Rxc7 {[%clk 0:00:10.3]} 54. Ng3
{[%clk 0:00:08.8]} 54... c3 {[%clk 0:00:10.5]} 55. Ne2 {[%clk 0:00:09.2]} 55...
c2 {[%clk 0:00:11.4]} 56. Nc1 {[%clk 0:00:09.3]} 56... Rb7 {[%clk 0:00:11.8]}
57. f6 {[%clk 0:00:09.8]} 57... Rb1 {[%clk 0:00:11.9]} 58. Nd3 {[%clk
0:00:10.4]} 58... Rd1 {[%clk 0:00:10.5]} 59. f7 {[%clk 0:00:09.1]} 59... Kg7
{[%clk 0:00:10.4]} 0-1